Workbook

Sheet с трендом (hidden)
K1: =ABS(L1)/L2 -> 21.66350464 | L1: =LINEST(E24:INDIRECT(CONCATENATE("e",$P$22+25)),B24:INDIRECT(CONCATENATE("b",$P$22+25)),1,1) -> 0.05108930351 | M1: 999.9460458
K2: =IF(_xlfn.T.INV.2T(0.05,M4)<K1,"нет тренда","есть тренд") -> нет тренда | L2: 0.002358312026 | M2: 0.01969509807
K3: =FINV(0.05,1,M4) -> 5.317655072 | L3: 0.983239314 | M3: 0.04295658366
K4: =IF(FINV(0.05,1,M4)>L4,"нет тренда","есть тренд") -> есть тренд | L4: 469.3074332 | M4: 8
L5: 0.8659980262 | M5: 0.01476214464
L7: =L3/(1-L3)*M4 -> 469.3074332
L8: =FINV(0.05,M4+2,2) -> 19.39589672
L9: =CONCATENATE("e",$P$22+25) -> e33 | O9: Θ | P9: =ABS(L1)*Q18 -> 1.226143284
O10: S | P10: =P24 -> 0.04446450676 | T10: Δ/√3
O11: ustab | P11: =IF(P9/P10<4/3,SQRT(SUMSQ(P9,P10)),P9/SQRT(3)+P10) -> 0.752378662 | R11: =P11/$E$24 -> 0.000752378662 | T11: =P16/SQRT(3) -> 0.7671129593 | U11: =ABS(L1)*Q18/SQRT(3)+P24 -> 0.752378662 | V11: =SQRT(SUMSQ(L1*Q18/SQRT(3),P24)) -> 0.7093092016
O12: ustab- | P12: =IF(P9/P10<4/3,SQRT(SUMSQ(P9,P10)),P9/SQRT(3)+P10) -> 0.752378662 | R12: =P12/$E$24 -> 0.000752378662 | T12: =T11+1000 -> 1000.767113 | U12: =U11+1000 -> 1000.752379 | V12: =V11+1000 -> 1000.709309
O13: ustab+ | P13: =G24/P23+(MAX(E24,M1)-MIN(E24,M1))/SQRT(3) -> 0.05084556193 | R13: 5.084556193e-05
L16: неопределенность от стабильности | P16: =ABS(L1)*Q18+P23*P24 -> 1.328678621 | R16: =P16/E24 -> 0.001328678621
L17: целевая неопределенность от нестабильности | P17: 1.5
L18: Предполагаемый срок годности | P18: 2 | Q18: 24 | R18: =P18*365 -> 730
P19: =Q18*L1+E24 -> 1001.226143 | Q19: =P23*$P$21*SQRT(1/COUNT($E$23:$E$42)+(Q18-AVERAGE($B$23:$B$42))^2/SUMXMY2($B$23:$B$42,$A$23:$A$42)) -> 0.1025353365
L21: СКО погрешностей измерений S(ε) | P21: =SQRT((1/(COUNT(E23:E50)-2))*SUMXMY2(E23:E50,C23:C50)) -> 0.04295658366
D22: Период | E22: результат | F22: прогноз | G22: ПГ | H22: +пг | I22: -пг | L22: число степеней свободы N-2 | P22: =COUNT(E23:E49)-2 -> 8 | Q22: =COUNT(E23:E50) -> 10
A23: =IF(ISNUMBER(E23),AVERAGE($B$23:$B$42),"") ->  | B23: =IF(ISNUMBER(E23),D23,"") ->  | C23: =IF(ISNUMBER(E23),D23*$L$1+$M$1,"") ->  | D23: =-D29 -> -5.252054795 | F23: =$E$24+$L$1*D23 -> 999.7316762 | G23: =$P$23*$P$21*SQRT(1/COUNT($E$23:$E$42)+(D23-AVERAGE($B$23:$B$42))^2/SUMXMY2($B$23:$B$42,$A$23:$A$42)) -> 0.06897139543 | H23: =F23+G23 -> 999.8006476 | I23: =F23-G23 -> 999.6627048 | J23: =$F$24+$P$17 -> 1001.5 | L23: коэффициент Стьюдента t | P23: =_xlfn.T.INV.2T(0.05,COUNT($E$23:$E$45)-2) -> 2.306004135 | Q23: =P23*P21 -> 0.09905805956 | R23: =COUNT($E$23:$E$45)-2 -> 8
A24: =IF(ISNUMBER(E24),AVERAGE($B$23:$B$42),"") -> 6.047031963 | B24: =IF(ISNUMBER(E24),D24,"") -> 0 | C24: =IF(ISNUMBER(E24),D24*$L$1+$M$1,"") -> 999.9460458 | D24: 0 | E24: 1000 | F24: =$E$24+$L$1*D24 -> 1000 | G24: =$P$23*$P$21*SQRT(1/COUNT($E$23:$E$42)+(D24-AVERAGE($B$23:$B$42))^2/SUMXMY2($B$23:$B$42,$A$23:$A$42)) -> 0.0454169776 | H24: =F24+G24 -> 1000.045417 | I24: =F24-G24 -> 999.954583 | J24: =$F$24+$P$17 -> 1001.5 | L24: СКО построенной зависимости S(X) | P24: =$P$21*SQRT(1/COUNT($E$24:$E$42)+(Q18-AVERAGE($B$24:$B$42))^2/SUMXMY2($B$24:$B$42,$A$24:$A$42)) -> 0.04446450676 | T24: =SUMXMY2($B$24:$B$42,$A$24:$A$42) -> 331.7851454
A25: 6.047031963 | B25: 0.4497716895 | C25: 999.9690243 | D25: 0.4497716895 | E25: 999.9958448 | F25: =$E$24+$L$1*D25 -> 1000.022979 | G25: =$P$23*$P$21*SQRT(1/COUNT($E$23:$E$42)+(D25-AVERAGE($B$23:$B$42))^2/SUMXMY2($B$23:$B$42,$A$23:$A$42)) -> 0.04367848715 | H25: 1000.066657 | I25: 999.9793 | J25: 1001.5 | O25: Σ | P25: =SUMXMY2($B$24:$B$42,$A$24:$A$42) -> 331.7851454
A26: 6.047031963 | B26: 0.9123287671 | C26: 999.9926561 | D26: 0.9123287671 | E26: 1000.030311 | F26: =$E$24+$L$1*D26 -> 1000.04661 | G26: 0.04196422676 | H26: 1000.088574 | I26: 1000.004646 | J26: 1001.5 | L26: Целевой срок годности | P26: =(SQRT(P21^2*P25*Q22^2*P23^2*P17^2-2*P21^2*P25*A24*Q22^2*ABS(L1)*P23^2*P17+((P21^2*P25*A24^2*Q22^2+P21^2*P25^2*Q22)*L1^2*P23^2-P21^4*P25*Q22*P23^4))+(P21^2*A24*Q22*P23^2-P25*Q22*ABS(L1)*P17))/(P21^2*Q22*P23^2-P25*Q22*L1^2) -> 27.04284273 | Q26: =P26*L1+E24 -> 1001.3816 | R26: =P23*$P$21*SQRT(1/COUNT($E$23:$E$42)+(P26-AVERAGE($B$23:$B$42))^2/SUMXMY2($B$23:$B$42,$A$23:$A$42)) -> 0.1183999999
A27: 6.047031963 | B27: 2.391780822 | C27: 1000.06824 | D27: 2.391780822 | E27: 1000.049134 | F27: 1000.122194 | G27: 0.03709980464 | H27: 1000.159294 | I27: 1000.085095 | J27: 1001.5
A28: 6.047031963 | B28: 2.884931507 | C28: 1000.093435 | D28: 2.884931507 | E28: 1000.065828 | F28: 1000.147389 | G28: 0.03573465223 | H28: 1000.183124 | I28: 1000.111654 | J28: 1001.5
A29: 6.047031963 | B29: 5.252054795 | C29: 1000.21437 | D29: 5.252054795 | E29: 1000.143465 | F29: 1000.268324 | G29: 0.03162184203 | H29: 1000.299946 | I29: 1000.236702 | J29: 1001.5
A30: 6.047031963 | B30: 8.835616438 | C30: 1000.397451 | D30: 8.835616438 | E30: 1000.380314 | F30: 1000.451405 | G30: 0.03480273037 | H30: 1000.486208 | I30: 1000.416603 | J30: 1001.5
A31: 6.047031963 | B31: 9.345205479 | C31: 1000.423486 | D31: 9.345205479 | E31: 1000.407432 | F31: 1000.47744 | G31: 0.03609658875 | H31: 1000.513537 | I31: 1000.441343 | J31: 1001.5
A32: 6.047031963 | B32: 11.50136986 | C32: 1000.533643 | D32: 11.50136986 | E32: 1000.514594 | F32: 1000.587597 | G32: 0.04314042348 | H32: 1000.630737 | I32: 1000.544457 | J32: 1001.5
A33: 6.047031963 | B33: =IF(ISNUMBER(E33),D33,"") -> 18.89726027 | C33: 1000.911494 | D33: 18.89726027 | E33: 1000.962922 | F33: 1000.965448 | G33: 0.07658262362 | H33: 1001.04203 | I33: 1000.888865 | J33: 1001.5
D34: 26.29863014 | F34: 1001.343579 | G34: 0.1145019878 | H34: 1001.458081 | I34: 1001.229077 | J34: 1001.5
D35: 31.88767123 | F35: 1001.629119 | G35: 0.1439775209 | H35: 1001.773096 | I35: 1001.485141 | J35: 1001.5
B36: =IF(ISNUMBER(E36),D36,"") ->  | C36: =IF(ISNUMBER(E36),D36*$L$1+$M$1,"") ->  | F36: =$E$24+$L$1*D36 -> 1000 | G36: =$P$23*$P$21*SQRT(1/COUNT($E$23:$E$42)+(D36-AVERAGE($B$23:$B$42))^2/SUMXMY2($B$23:$B$42,$A$23:$A$42)) -> 0.0454169776 | H36: 1000.045417 | I36: 999.954583 | J36: 1001.5
B37: =IF(ISNUMBER(E37),D37,"") ->  | C37: =IF(ISNUMBER(E37),D37*$L$1+$M$1,"") ->  | F37: =$E$24+$L$1*D37 -> 1000 | G37: =$P$23*$P$21*SQRT(1/COUNT($E$23:$E$42)+(D37-AVERAGE($B$23:$B$42))^2/SUMXMY2($B$23:$B$42,$A$23:$A$42)) -> 0.0454169776 | H37: 1000.045417 | I37: 999.954583 | J37: 1001.5
F38: 1000 | G38: 0.0454169776 | H38: 1000.045417 | I38: 999.954583 | J38: 1001.5
F39: 1000 | G39: 0.0454169776 | H39: 1000.045417 | I39: 999.954583 | J39: 1001.5
F40: 1000 | G40: 0.0454169776 | H40: 1000.045417 | I40: 999.954583 | J40: 1001.5
B41: =IF(ISNUMBER(E41),D41,"") ->  | C41: =IF(ISNUMBER(E41),D41*$L$1+$M$1,"") ->  | F41: =$E$24+$L$1*D41 -> 1000 | G41: =$P$23*$P$21*SQRT(1/COUNT($E$23:$E$42)+(D41-AVERAGE($B$23:$B$42))^2/SUMXMY2($B$23:$B$42,$A$23:$A$42)) -> 0.0454169776 | H41: =F41+G41 -> 1000.045417 | I41: =F41-G41 -> 999.954583 | J41: 1001.5
B42: =IF(ISNUMBER(E42),D42,"") ->  | C42: =IF(ISNUMBER(E42),D42*$L$1+$M$1,"") ->  | F42: =$E$24+$L$1*D42 -> 1000 | G42: =$P$23*$P$21*SQRT(1/COUNT($E$23:$E$42)+(D42-AVERAGE($B$23:$B$42))^2/SUMXMY2($B$23:$B$42,$A$23:$A$42)) -> 0.0454169776 | H42: =F42+G42 -> 1000.045417 | I42: =F42-G42 -> 999.954583 | J42: 1001.5
L43: =$U$44-L44 -> 18.89726027 | M43: 18.37876712 | N43: 17.98493151 | O43: 16.50547945 | P43: 16.01232877 | Q43: 13.64520548 | R43: 10.06164384 | S43: 9.552054795 | T43: 7.395890411 | U43: =$U$44-U44 -> 0
L44: 0 | M44: 0.5184931507 | N44: 0.9123287671 | O44: 2.391780822 | P44: 2.884931507 | Q44: 5.252054795 | R44: 8.835616438 | S44: 9.345205479 | T44: 11.50136986 | U44: 18.89726027
L45: 1000.15 | M45: 1000.08 | N45: 1000.09 | O45: 999.9508661 | P45: 999.97 | Q45: 999.8565349 | R45: 999.6196862 | S45: 999.5925678 | T45: 999.4854064 | U45: 999.0370779
L47: 0 | M47: 1000 | T47: 0 | U47: 999.0370779
L48: 0.4497716895 | M48: 999.9958448 | T48: 7.395890411 | U48: 999.4854064
L49: 0.9123287671 | M49: 1000.030311 | T49: 9.552054795 | U49: 999.5925678
L50: 2.391780822 | M50: 1000.049134 | T50: 10.06164384 | U50: 999.6196862
L51: 2.884931507 | M51: 1000.065828 | T51: 13.64520548 | U51: 999.8565349
L52: 5.252054795 | M52: 1000.143465 | T52: 16.01232877 | U52: 999.97
L53: 8.835616438 | M53: 1000.380314 | T53: 16.50547945 | U53: 999.9508661
L54: 9.345205479 | M54: 1000.407432 | T54: 17.98493151 | U54: 1000.09
L55: 11.50136986 | M55: 1000.514594 | T55: 18.37876712 | U55: 1000.08
L56: 18.89726027 | M56: 1000.962922 | T56: 18.89726027 | U56: 1000.15
L57: 22.67808219 | M57: 1001.161061
L58: 23.83287671 | M58: 1001.222734

Sheet Data
A1: Исходные данные | E1: Предполагаемый срок годности | K1: =IF(OR(A3="",B3="",I1="",I2=""),"Введите данные в ячейки выделенные цветом","") -> Введите данные в ячейки выделенные цветом
A2: Период | B2: Результат | E2: Допускаемые границы погрешности от нестабильности
E6: * Использованные формулы проверены на совместимость в Microsoft® Excel® для Microsoft 365 в сентябре 2022 г. Динамические массивы поддерживаются в Microsoft® Excel® c сентября 2018 г.
E7: Об оценке стабильности стандартных образцов / П.В. Мигаль [и др.] // Эталоны. Стандартные образцы. 2023. Т. 19, № 3. С. 65–75 | P7: https://doi.org/10.20915/2077‑1177‑2023‑19‑3-65-75
E9: Примеры | H9: Инструкция
H10: Книга состоит из трех основных листов. При запуске доступен только лист Data в котором синим выделены поля для заполнения данными:
H11: А3:А100 - момент времени в котором получен результат измерений (желательно заполнять в месяцах от 0)
H12: B3:B100 - результаты измерений значения аттестуемой характеристики в соответсвующие моменты времени
H13: I1 - предполагаемый срок годности (в тех же единицах времени что и данные а A2:A100)
H14: I2 - допускаемые границы погрешности или целевая неопределенность от нестабильности (в тех же единицах что и данные в B3:B100) - выбрать из выпадающего списка
H15: На листе Data приведены три основные конпки:
H16: Рассчет - производит расчет характеристик стабильности СО и выводит результаты на лист Report
H17: Сброс - удаляет введенные данные
H18: Проверка - проверяет алгоритмы на предмет ошибок в расчетах
H19: и кнопки с примерами по нажатии на которые проводится обработка данных из различных примеров
H20: На листе Report продублированы указанные кнопки и добавлена еще одна:
H21: Копировать диаграмму - копирует диаграмму на незащищенный лист для редактирования
H23: При запуске файла происходит проверка алгоритмов путем сравнения результатов расчета в этом файле с опорным набором данных полученных в PTC Mathcad
H24: Если проверка не пройдена рекомендуется загрузить оригинальный файл по адресу:
H25: https://uniim.ru/calculations/
H27: Авторы планируют наполнять этот файл другими примерами и будут благодарны за предоставленные данные экспериментов по оценке стабильности СО по адресу
H28: mig@uniim.ru
I48: Тестовые данные
I49: Период | J49: Результат | K49: 24 | L49: Период | M49: Результат | N49: 24 | O49: Период | P49: Результат | Q49: 24 | R49: Период | S49: Результат | T49: 24
I50: 0 | J50: 8.2 | K50: 0.3 | L50: 0 | M50: 1000 | N50: 1.5 | O50: 0 | P50: 0 | Q50: 0.2 | R50: 0 | S50: 0 | T50: 0.2
I51: 1 | J51: 8.34 | L51: 0.4497716895 | M51: 999.9958448 | O51: 1 | P51: 0.028 | R51: 1 | S51: 0.19
I52: 2 | J52: 7.97 | L52: 0.9123287671 | M52: 1000.030311 | O52: 2 | P52: -0.0236 | R52: 2 | S52: -0.19
I53: 3 | J53: 8.29 | L53: 2.391780822 | M53: 1000.049134 | O53: 3 | P53: -0.00088 | R53: 3 | S53: 0
I54: 4 | J54: 8.02 | L54: 2.884931507 | M54: 1000.065828 | O54: 4 | P54: -0.036704 | R54: 4 | S54: 0.19
I55: 5 | J55: 8 | L55: 5.252054795 | M55: 1000.143465 | O55: 5 | P55: -0.0693632 | R55: 5 | S55: -0.19
I56: 6 | J56: 8.18 | L56: 8.835616438 | M56: 1000.380314 | O56: 6 | P56: -0.05949056 | R56: 6 | S56: 0
I57: 7 | J57: 8.24 | L57: 9.345205479 | M57: 1000.407432 | O57: 7 | P57: -0.039592448 | R57: 7 | S57: 0.19
I58: 8 | J58: 8.02 | L58: 11.50136986 | M58: 1000.514594 | O58: 8 | P58: -0.0676739584 | R58: 8 | S58: -0.19
I59: 9 | J59: 8.28 | L59: 18.89726027 | M59: 1000.962922 | O59: 9 | P59: -0.03813916672 | R59: 9 | S59: 0
I60: 10 | J60: 8.07 | O60: 10 | P60: -0.05651133338 | R60: 10 | S60: 0.19
I61: 11 | J61: 8.2 | O61: 11 | P61: -0.0452090667 | R61: 11 | S61: -0.19
O62: 12 | P62: -0.05016725336 | R62: 12 | S62: 0
O63: 13 | P63: -0.09213380269 | R63: 13 | S63: 0.19
O64: 14 | P64: -0.1297070422 | R64: 14 | S64: -0.19
O65: 15 | P65: -0.1477656337 | R65: 15 | S65: 0
O66: 16 | P66: -0.248212507 | R66: 16 | S66: 0.19
O67: 17 | P67: -0.3165700056 | R67: 17 | S67: -0.19
O68: 18 | P68: -0.3352560045 | R68: 18 | S68: 0
O69: 19 | P69: -0.3182048036 | R69: 19 | S69: 0.19
O70: 20 | P70: -0.2665638429 | R70: 20 | S70: -0.19
O71: 21 | P71: -0.2772510743 | R71: 21 | S71: 0.1266666667
O72: 22 | P72: -0.2558008594
O73: 23 | P73: -0.2166406875

Sheet Report (hidden)
A1: СКО погрешностей измерений S(ε) | B1: =Лист2!AL1 -> 0.043
A2: Число степеней свободы N-2 | B2: =Лист2!Z2 -> 8
A3: Коэффициент Стьюдента t | B3: =Лист2!AL3 -> 2.3
A4: СКО построенной зависимости S(X) | B4: =Лист2!AL4 -> 0.045
A5: Предполагаемый срок годности τг | B5: =Лист2!Z5 -> 24
A6: Границы погрешности от нестабильности Δ ̂T(τг) | B6: =Лист2!AL7 -> 1.3
A7: Стандартная неопределенность от нестабильности u(τг) | B7: =Лист2!AL11 -> 0.71
A8: Допускаемые границы погрешности от нестабильности | B8: =Лист2!Z6 -> 1.5
A9: Максимальный срок годности τ ̂г | B9: =Лист2!AL8 -> 27
A10: Границы погрешности от нестабильности Δ ̂T (τ ̂г) | B10: =Лист2!AL9 -> 1.5
A11: Стандартная неопределенность от нестабильности u(τ ̂г) | B11: =Лист2!AL12 -> 0.8
A13: Количество значащих цифр | B13: 2

Sheet Лист2 (hidden)
E1: =-$E$3*0.1 -> -0.04497716895 | F1: =F2 -> 1001.5 | G1: =G2 -> 998.5 | R1: =LINEST(B2:INDIRECT(CONCATENATE("b",COUNT(B:B)+1)),A2:INDIRECT(CONCATENATE("a",COUNT(A:A)+1)),1,1) -> 0.05108930351 | S1: 999.9460458 | T1: a | U1: b | V1: СКО погрешностей измерений S(ε) | Z1: =S3 -> 0.04295658366 | AH1: Область постоения | AJ1: =Report!B13 -> 2 | AK1: =IF(INT(LOG(Z1))=LOG(Z1),IF(INT((LOG(Z1)-$AJ$1)*-1)-1<0,0,INT((LOG(Z1)-$AJ$1)*-1)-1),IF(INT((LOG(Z1)-$AJ$1)*-1)<0,0,INT((LOG(Z1)-$AJ$1)*-1))) -> 3 | AL1: =ROUND(Z1,AK1) -> 0.043
A2: 0 | B2: 1000 | C2: =IF(ISNUMBER(B2),AVERAGE($A$2:INDIRECT(CONCATENATE("a",COUNT(A:A)+1))),"") -> 6.047031963 | E2: =IF(A2="",MAX(IF($Z$5>$Z$8,$Z$5+$Z$5*0.1,$Z$8+$Z$8*0.1),$Z$5+$Z$5*0.1),A2) -> 0 | F2: =IF(ISNUMBER(B2),Лист2!$B$2+Лист2!$Z$9,"") -> 1001.5 | G2: =IF(ISNUMBER(B2),Лист2!$B$2-Лист2!$Z$9,"") -> 998.5 | R2: 0.002358312026 | S2: 0.01969509807 | T2: sa | U2: sb | V2: Число степеней свободы N-2 | Z2: =S4 -> 8 | AC2: t | AH2: =MAX(IF($Z$5>$Z$8,$Z$5+$Z$5*0.1,$Z$8+$Z$8*0.1),$Z$5+$Z$5*0.1) -> 29.747127
A3: 0.4497716895 | B3: 999.9958448 | C3: =IF(ISNUMBER(B3),AVERAGE($A$2:INDIRECT(CONCATENATE("a",COUNT(A:A)+1))),"") -> 6.047031963 | E3: =IF(AND(A3="",A2=""),MAX(IF($Z$5>$Z$8,$Z$5+$Z$5*0.1,$Z$8+$Z$8*0.1),$Z$5+$Z$5*0.1),IF(A3="",MAX($Z$5,$Z$8),A3)) -> 0.4497716895 | F3: =IF(ISNUMBER(B3),Лист2!$B$2+Лист2!$Z$9,"") -> 1001.5 | G3: =IF(ISNUMBER(B3),Лист2!$B$2-Лист2!$Z$9,"") -> 998.5 | R3: 0.983239314 | S3: 0.04295658366 | T3: R | U3: sy | V3: Коэффициент Стьюдента t | Z3: =_xlfn.T.INV.2T(0.05,Z2) -> 2.306004135 | AA3: =IF(Z3<ABS(R1)/R2,"Тренд значим","Тренд незначим") -> Тренд значим | AC3: =ABS(R1)/R2 -> 21.66350464 | AH3: -0.1 | AK3: =IF(INT(LOG(Z3))=LOG(Z3),IF(INT((LOG(Z3)-$AJ$1)*-1)-1<0,0,INT((LOG(Z3)-$AJ$1)*-1)-1),IF(INT((LOG(Z3)-$AJ$1)*-1)<0,0,INT((LOG(Z3)-$AJ$1)*-1))) -> 1 | AL3: =ROUND(Z3,AK3) -> 2.3
A4: 0.9123287671 | B4: 1000.030311 | C4: =IF(ISNUMBER(B4),AVERAGE($A$2:INDIRECT(CONCATENATE("a",COUNT(A:A)+1))),"") -> 6.047031963 | E4: =IF(AND(A4="",A3=""),MAX(IF($Z$5>$Z$8,$Z$5+$Z$5*0.1,$Z$8+$Z$8*0.1),$Z$5+$Z$5*0.1),IF(A4="",MAX($Z$5,$Z$8),A4)) -> 0.9123287671 | F4: =IF(ISNUMBER(B2),Лист2!$B$2+Лист2!$Z$9,"") -> 1001.5 | G4: =IF(ISNUMBER(B2),Лист2!$B$2-Лист2!$Z$9,"") -> 998.5 | R4: 469.3074332 | S4: 8 | T4: F | U4: N-2 | V4: СКО построенной зависимости S(X) | Z4: =Z1*SQRT(1/Z2+(Z5-AVERAGE(X))^2/Syy) -> 0.04498026304 | AB4: t*S(X) | AC4: S(X) | AD4: S(a) | AE4: a*τ | AK4: =IF(INT(LOG(Z4))=LOG(Z4),IF(INT((LOG(Z4)-$AJ$1)*-1)-1<0,0,INT((LOG(Z4)-$AJ$1)*-1)-1),IF(INT((LOG(Z4)-$AJ$1)*-1)<0,0,INT((LOG(Z4)-$AJ$1)*-1))) -> 3 | AL4: =ROUND(Z4,AK4) -> 0.045
A5: 2.391780822 | B5: 1000.049134 | C5: =IF(ISNUMBER(B5),AVERAGE($A$2:INDIRECT(CONCATENATE("a",COUNT(A:A)+1))),"") -> 6.047031963 | E5: =IF(AND(A5="",A4=""),MAX(IF($Z$5>$Z$8,$Z$5+$Z$5*0.1,$Z$8+$Z$8*0.1),$Z$5+$Z$5*0.1),IF(A5="",MAX($Z$5,$Z$8),A5)) -> 2.391780822 | F5: =IF(ISNUMBER(B3),Лист2!$B$2+Лист2!$Z$9,"") -> 1001.5 | G5: =IF(ISNUMBER(B3),Лист2!$B$2-Лист2!$Z$9,"") -> 998.5 | R5: 0.8659980262 | S5: 0.01476214464 | T5: ssreg | U5: ssresid | V5: Предполагаемый срок годности | Z5: 24 | AA5: =Z5*$R$1+$B$2 -> 1001.226143 | AB5: =Z1*SQRT(1/(Z2+2)+(Z5-AVERAGE(X))^2/Syy)*Z3 -> 0.1025353365 | AC5: =AB5/Z3 -> 0.04446450676 | AD5: =R2*Z5 -> 0.05659948862 | AE5: =ABS($R$1*Z5) -> 1.226143284
A6: 2.884931507 | B6: 1000.065828 | C6: =IF(ISNUMBER(B6),AVERAGE($A$2:INDIRECT(CONCATENATE("a",COUNT(A:A)+1))),"") -> 6.047031963 | E6: =IF(AND(A6="",A5=""),MAX(IF($Z$5>$Z$8,$Z$5+$Z$5*0.1,$Z$8+$Z$8*0.1),$Z$5+$Z$5*0.1),IF(A6="",MAX($Z$5,$Z$8),A6)) -> 2.884931507 | F6: =IF(ISNUMBER(B4),Лист2!$B$2+Лист2!$Z$9,"") -> 1001.5 | G6: =IF(ISNUMBER(B4),Лист2!$B$2-Лист2!$Z$9,"") -> 998.5 | V6: =Data!E2 -> Допускаемые границы погрешности от нестабильности | Z6: 1.5 | AK6: =IF(INT(LOG(Z6))=LOG(Z6),IF(INT((LOG(Z6)-$AJ$1)*-1)-1<0,0,INT((LOG(Z6)-$AJ$1)*-1)-1),IF(INT((LOG(Z6)-$AJ$1)*-1)<0,0,INT((LOG(Z6)-$AJ$1)*-1))) -> 1 | AL6: =ROUND(Z6,AK6) -> 1.5
A7: 5.252054795 | B7: 1000.143465 | C7: =IF(ISNUMBER(B7),AVERAGE($A$2:INDIRECT(CONCATENATE("a",COUNT(A:A)+1))),"") -> 6.047031963 | E7: 5.252054795 | F7: =IF(ISNUMBER(B5),Лист2!$B$2+Лист2!$Z$9,"") -> 1001.5 | G7: =IF(ISNUMBER(B5),Лист2!$B$2-Лист2!$Z$9,"") -> 998.5 | V7: Границы погрешности от нестабильности | Z7: =ABS(R1)*Z5+AB5 -> 1.328678621 | AB7: t*S(X) | AC7: S(X) | AD7: S(a) | AE7: a*τ | AK7: =IF(INT(LOG(Z7))=LOG(Z7),IF(INT((LOG(Z7)-$AJ$1)*-1)-1<0,0,INT((LOG(Z7)-$AJ$1)*-1)-1),IF(INT((LOG(Z7)-$AJ$1)*-1)<0,0,INT((LOG(Z7)-$AJ$1)*-1))) -> 1 | AL7: =ROUND(Z7,AK7) -> 1.3
A8: 8.835616438 | B8: 1000.380314 | C8: =IF(ISNUMBER(B8),AVERAGE($A$2:INDIRECT(CONCATENATE("a",COUNT(A:A)+1))),"") -> 6.047031963 | E8: 8.835616438 | F8: =IF(ISNUMBER(B6),Лист2!$B$2+Лист2!$Z$9,"") -> 1001.5 | G8: =IF(ISNUMBER(B6),Лист2!$B$2-Лист2!$Z$9,"") -> 998.5 | V8: Максимальный срок годности | Z8: =IF(V6=V11,Z14,Z13) -> 27.04284273 | AA8: =Z8*R1+B2 -> 1001.3816 | AB8: =Z1*SQRT(1/(Z2+2)+(Z8-AVERAGE(X))^2/Syy)*Z3 -> 0.1183999999 | AC8: =AB8/Z3 -> 0.05134422706 | AD8: =R2*Z8 -> 0.06377546122 | AE8: =ABS($R$1*Z8) -> 1.3816 | AK8: =IF(INT(LOG(Z8))=LOG(Z8),IF(INT((LOG(Z8)-$AJ$1)*-1)-1<0,0,INT((LOG(Z8)-$AJ$1)*-1)-1),IF(INT((LOG(Z8)-$AJ$1)*-1)<0,0,INT((LOG(Z8)-$AJ$1)*-1))) -> 0 | AL8: =ROUND(Z8,AK8) -> 27
A9: 9.345205479 | B9: 1000.407432 | C9: =IF(ISNUMBER(B9),AVERAGE($A$2:INDIRECT(CONCATENATE("a",COUNT(A:A)+1))),"") -> 6.047031963 | E9: 9.345205479 | F9: =IF(ISNUMBER(B7),Лист2!$B$2+Лист2!$Z$9,"") -> 1001.5 | G9: =IF(ISNUMBER(B7),Лист2!$B$2-Лист2!$Z$9,"") -> 998.5 | V9: Границы погрешности от нестабильности | Z9: =ABS(R1)*Z8+AB8 -> 1.5 | AK9: =IF(INT(LOG(Z9))=LOG(Z9),IF(INT((LOG(Z9)-$AJ$1)*-1)-1<0,0,INT((LOG(Z9)-$AJ$1)*-1)-1),IF(INT((LOG(Z9)-$AJ$1)*-1)<0,0,INT((LOG(Z9)-$AJ$1)*-1))) -> 1 | AL9: =ROUND(Z9,AK9) -> 1.5
A10: 11.50136986 | B10: 1000.514594 | C10: =IF(ISNUMBER(B10),AVERAGE($A$2:INDIRECT(CONCATENATE("a",COUNT(A:A)+1))),"") -> 6.047031963 | E10: 11.50136986 | F10: =IF(ISNUMBER(B8),Лист2!$B$2+Лист2!$Z$9,"") -> 1001.5 | G10: =IF(ISNUMBER(B8),Лист2!$B$2-Лист2!$Z$9,"") -> 998.5 | U10: τ | V10: Допускаемые границы погрешности от нестабильности | Z10: Δ/2√3
A11: 18.89726027 | B11: 1000.962922 | C11: =IF(ISNUMBER(B11),AVERAGE($A$2:INDIRECT(CONCATENATE("a",COUNT(A:A)+1))),"") -> 6.047031963 | E11: 18.89726027 | F11: =IF(ISNUMBER(B9),Лист2!$B$2+Лист2!$Z$9,"") -> 1001.5 | G11: =IF(ISNUMBER(B9),Лист2!$B$2-Лист2!$Z$9,"") -> 998.5 | U11: =Z5 -> 24 | V11: Целевая стандартная неопределенность от нестабильности | Z11: =Z7/2/SQRT(3) -> 0.3835564797 | AA11: =SQRT(SUMSQ(AE5/SQRT(3),AC5)) -> 0.7093092016 | AK11: =IF(INT(LOG(AA11))=LOG(AA11),IF(INT((LOG(AA11)-$AJ$1)*-1)-1<0,0,INT((LOG(AA11)-$AJ$1)*-1)-1),IF(INT((LOG(AA11)-$AJ$1)*-1)<0,0,INT((LOG(AA11)-$AJ$1)*-1))) -> 2 | AL11: =ROUND(AA11,AK11) -> 0.71
C12: =IF(ISNUMBER(B12),AVERAGE($A$2:INDIRECT(CONCATENATE("a",COUNT(A:A)+1))),"") ->  | E12: 27.04284273 | F12: =IF(ISNUMBER(B10),Лист2!$B$2+Лист2!$Z$9,"") -> 1001.5 | G12: =IF(ISNUMBER(B10),Лист2!$B$2-Лист2!$Z$9,"") -> 998.5 | U12: =Z8 -> 27.04284273 | V12: Стандартная неопределенность от нестабильности | Z12: =Z9/2/SQRT(3) -> 0.4330127019 | AA12: =SQRT(SUMSQ(AE8/SQRT(3),AC8)) -> 0.7993178861 | AK12: =IF(INT(LOG(AA12))=LOG(AA12),IF(INT((LOG(AA12)-$AJ$1)*-1)-1<0,0,INT((LOG(AA12)-$AJ$1)*-1)-1),IF(INT((LOG(AA12)-$AJ$1)*-1)<0,0,INT((LOG(AA12)-$AJ$1)*-1))) -> 2 | AL12: =ROUND(AA12,AK12) -> 0.8
C13: =IF(ISNUMBER(B13),AVERAGE($A$2:INDIRECT(CONCATENATE("a",COUNT(A:A)+1))),"") ->  | E13: 29.747127 | F13: =IF(ISNUMBER(B11),Лист2!$B$2+Лист2!$Z$9,"") -> 1001.5 | G13: =IF(ISNUMBER(B11),Лист2!$B$2-Лист2!$Z$9,"") -> 998.5 | Z13: =IF(ISNUMBER(( SQRT(Z1^2*Syy*(Z2+2)^2*Z3^2*Z6^2-2*Z1^2*Syy*C2*(Z2+2)^2*ABS(R1)*Z3^2*Z6+((Z1^2*Syy*C2^2*(Z2+2)^2+Z1^2*Syy^2*(Z2+2))*R1^2*Z3^2-Z1^4*Syy*(Z2+2)*Z3^4))+(Z1^2*C2*(Z2+2)*Z3^2-Syy*(Z2+2)*ABS(R1)*Z6))/(Z1^2*(Z2+2)*Z3^2-Syy*(Z2+2)*R1^2)),( SQRT(Z1^2*Syy*(Z2+2)^2*Z3^2*Z6^2-2*Z1^2*Syy*C2*(Z2+2)^2*ABS(R1)*Z3^2*Z6+((Z1^2*Syy*C2^2*(Z2+2)^2+Z1^2*Syy^2*(Z2+2))*R1^2*Z3^2-Z1^4*Syy*(Z2+2)*Z3^4))+(Z1^2*C2*(Z2+2)*Z3^2-Syy*(Z2+2)*ABS(R1)*Z6))/(Z1^2*(Z2+2)*Z3^2-Syy*(Z2+2)*R1^2),"0") -> 27.04284273
C14: =IF(ISNUMBER(B14),AVERAGE($A$2:INDIRECT(CONCATENATE("a",COUNT(A:A)+1))),"") ->  | E14: 29.747127 | F14: =IF(ISNUMBER(B12),Лист2!$B$2+Лист2!$Z$9,"") ->  | G14: =IF(ISNUMBER(B12),Лист2!$B$2-Лист2!$Z$9,"") ->  | Z14: =IF(ISNUMBER(((SQRT(3)*SQRT(-((N+2)*Syy*(((Sx^2-Z6^2*(N+2))*Syy+AVERAGE(A2:A13)^2*(N+2)*Sx^2)*R1^2+(3*Sx^4-3*Z6^2*(N+2)*Sx^2)))))+(3*AVERAGE(A2:A13)*(N+2)*Sx^2))/(N+2)/(Syy*R1^2+3*Sx^2)),((SQRT(3)*SQRT(-((N+2)*Syy*(((Sx^2-Z6^2*(N+2))*Syy+AVERAGE(A2:A13)^2*(N+2)*Sx^2)*R1^2+(3*Sx^4-3*Z6^2*(N+2)*Sx^2)))))+(3*AVERAGE(A2:A13)*(N+2)*Sx^2))/(N+2)/(Syy*R1^2+3*Sx^2),"") -> 50.72591471 | AA14: =Z14*R1+B8 -> 1002.971865 | AB14: =Z1*SQRT(1/(Z2+2)+(Z14-AVERAGE(X))^2/Syy)*Z3 -> 0.2449870627 | AC14: =AB14/Z3 -> 0.1062387786 | AD14: =R2*Z14 -> 0.1196275347 | AE14: =ABS($R$1*Z14) -> 2.591551652
C15: =IF(ISNUMBER(B15),AVERAGE($A$2:INDIRECT(CONCATENATE("a",COUNT(A:A)+1))),"") ->  | E15: 29.747127 | F15: =IF(ISNUMBER(B13),Лист2!$B$2+Лист2!$Z$9,"") ->  | G15: =IF(ISNUMBER(B13),Лист2!$B$2-Лист2!$Z$9,"") ->  | Z15: =ABS(R1)*Z14+AB14 -> 2.836538715 | AI15: Округление | AJ15: =AJ1 -> 2
C16: =IF(ISNUMBER(B16),AVERAGE($A$2:INDIRECT(CONCATENATE("a",COUNT(A:A)+1))),"") ->  | E16: 29.747127 | F16: =IF(ISNUMBER(B14),Лист2!$B$2+Лист2!$Z$9,"") ->  | G16: =IF(ISNUMBER(B14),Лист2!$B$2-Лист2!$Z$9,"") ->  | AA16: =Report!A1 -> СКО погрешностей измерений S(ε) | AB16: =Z1 -> 0.04295658366 | AD16: 0.04295658366 | AE16: =AD16/AB16 -> 1 | AI16: Макс Х | AJ16: =MAX(E:E) -> 29.747127 | AK16: =ROUNDUP(AJ16,AL16) -> 30 | AL16: =IF(INT(LOG(AJ16))=LOG(AJ16),IF(INT((LOG(AJ16)-$AJ$15)*-1)-1<0,0,INT((LOG(AJ16)-$AJ$15)*-1)-1),IF(INT((LOG(AJ16)-$AJ$15)*-1)<0,0,INT((LOG(AJ16)-$AJ$15)*-1))) -> 0
C17: =IF(ISNUMBER(B17),AVERAGE($A$2:INDIRECT(CONCATENATE("a",COUNT(A:A)+1))),"") ->  | E17: 29.747127 | F17: =IF(ISNUMBER(B15),Лист2!$B$2+Лист2!$Z$9,"") ->  | G17: =IF(ISNUMBER(B15),Лист2!$B$2-Лист2!$Z$9,"") ->  | AA17: =Report!A2 -> Число степеней свободы N-2 | AB17: =Z2 -> 8 | AD17: 8 | AE17: =AD17/AB17 -> 1 | AI17: Макс Y | AJ17: =IF(MAX(data2)<MAX(data2,delta1),MAX(data2),MAX(data2,delta1)) -> 1001.6524 | AK17: =ROUNDUP(AJ17,AL17) -> 1002 | AL17: =IF(INT(LOG(AJ17))=LOG(AJ17),IF(INT((LOG(AJ17)-$AJ$15)*-1)-1<0,0,INT((LOG(AJ17)-$AJ$15)*-1)-1),IF(INT((LOG(AJ17)-$AJ$15)*-1)<0,0,INT((LOG(AJ17)-$AJ$15)*-1))) -> 0
C18: =IF(ISNUMBER(B18),AVERAGE($A$2:INDIRECT(CONCATENATE("a",COUNT(A:A)+1))),"") ->  | E18: 29.747127 | F18: =IF(ISNUMBER(B16),Лист2!$B$2+Лист2!$Z$9,"") ->  | G18: =IF(ISNUMBER(B16),Лист2!$B$2-Лист2!$Z$9,"") ->  | AA18: =Report!A3 -> Коэффициент Стьюдента t | AB18: =Z3 -> 2.306004135 | AD18: 2.306004135 | AE18: 1 | AI18: Мин Y | AJ18: =IF(MIN(data3)>MIN(data3,delta2),MIN(data3),MIN(data3,delta2)) -> 999.9521077 | AK18: =ROUNDDOWN(AJ18,AL18) -> 999 | AL18: =IF(INT(LOG(ABS(AJ18)))=LOG(ABS(AJ18)),IF(INT((LOG(ABS(AJ18))-$AJ$15)*-1)-1<0,0,INT((LOG(ABS(AJ18))-$AJ$15)*-1)-1),IF(INT((LOG(ABS(AJ18))-$AJ$15)*-1)<0,0,INT((LOG(ABS(AJ18))-$AJ$15)*-1))) -> 0
C19: =IF(ISNUMBER(B19),AVERAGE($A$2:INDIRECT(CONCATENATE("a",COUNT(A:A)+1))),"") ->  | E19: 29.747127 | F19: =IF(ISNUMBER(B17),Лист2!$B$2+Лист2!$Z$9,"") ->  | G19: =IF(ISNUMBER(B17),Лист2!$B$2-Лист2!$Z$9,"") ->  | AA19: =Report!A4 -> СКО построенной зависимости S(X) | AB19: =Z4 -> 0.04498026304 | AD19: 0.04498026304 | AE19: 1
C20: =IF(ISNUMBER(B20),AVERAGE($A$2:INDIRECT(CONCATENATE("a",COUNT(A:A)+1))),"") ->  | E20: 29.747127 | F20: =IF(ISNUMBER(B18),Лист2!$B$2+Лист2!$Z$9,"") ->  | G20: =IF(ISNUMBER(B18),Лист2!$B$2-Лист2!$Z$9,"") ->  | AA20: =Report!A5 -> Предполагаемый срок годности τг | AB20: =Z5 -> 24 | AD20: 24 | AE20: 1
C21: =IF(ISNUMBER(B21),AVERAGE($A$2:INDIRECT(CONCATENATE("a",COUNT(A:A)+1))),"") ->  | E21: 29.747127 | F21: =IF(ISNUMBER(B19),Лист2!$B$2+Лист2!$Z$9,"") ->  | G21: =IF(ISNUMBER(B19),Лист2!$B$2-Лист2!$Z$9,"") ->  | AA21: =Report!A6 -> Границы погрешности от нестабильности Δ ̂T(τг) | AB21: =Z7 -> 1.328678621 | AD21: 1.328678621 | AE21: 1
C22: =IF(ISNUMBER(B22),AVERAGE($A$2:INDIRECT(CONCATENATE("a",COUNT(A:A)+1))),"") ->  | E22: 29.747127 | F22: =IF(ISNUMBER(B20),Лист2!$B$2+Лист2!$Z$9,"") ->  | G22: =IF(ISNUMBER(B20),Лист2!$B$2-Лист2!$Z$9,"") ->  | AA22: =Report!A7 -> Стандартная неопределенность от нестабильности u(τг) | AB22: =AA11 -> 0.7093092016 | AD22: 0.7093092016 | AE22: 1
C23: =IF(ISNUMBER(B23),AVERAGE($A$2:INDIRECT(CONCATENATE("a",COUNT(A:A)+1))),"") ->  | E23: 29.747127 | F23: =IF(ISNUMBER(B21),Лист2!$B$2+Лист2!$Z$9,"") ->  | G23: =IF(ISNUMBER(B21),Лист2!$B$2-Лист2!$Z$9,"") ->  | AA23: =Report!A8 -> Допускаемые границы погрешности от нестабильности | AB23: =Z6 -> 1.5 | AD23: 1.5 | AE23: 1
C24: =IF(ISNUMBER(B24),AVERAGE($A$2:INDIRECT(CONCATENATE("a",COUNT(A:A)+1))),"") ->  | E24: 29.747127 | F24: =IF(ISNUMBER(B22),Лист2!$B$2+Лист2!$Z$9,"") ->  | G24: =IF(ISNUMBER(B22),Лист2!$B$2-Лист2!$Z$9,"") ->  | AA24: =Report!A9 -> Максимальный срок годности τ ̂г | AB24: =Z8 -> 27.04284273 | AD24: 27.04284273 | AE24: 1
C25: =IF(ISNUMBER(B25),AVERAGE($A$2:INDIRECT(CONCATENATE("a",COUNT(A:A)+1))),"") ->  | E25: 29.747127 | F25: =IF(ISNUMBER(B23),Лист2!$B$2+Лист2!$Z$9,"") ->  | G25: =IF(ISNUMBER(B23),Лист2!$B$2-Лист2!$Z$9,"") ->  | AA25: =Report!A10 -> Границы погрешности от нестабильности Δ ̂T (τ ̂г) | AB25: =Z6 -> 1.5 | AD25: 1.5 | AE25: 1
C26: =IF(ISNUMBER(B26),AVERAGE($A$2:INDIRECT(CONCATENATE("a",COUNT(A:A)+1))),"") ->  | E26: 29.747127 | F26: =IF(ISNUMBER(B24),Лист2!$B$2+Лист2!$Z$9,"") ->  | G26: =IF(ISNUMBER(B24),Лист2!$B$2-Лист2!$Z$9,"") ->  | AA26: =Report!A11 -> Стандартная неопределенность от нестабильности u(τ ̂г) | AB26: =AA12 -> 0.7993178861 | AD26: 0.7993178861 | AE26: 1
C27: =IF(ISNUMBER(B27),AVERAGE($A$2:INDIRECT(CONCATENATE("a",COUNT(A:A)+1))),"") ->  | E27: 29.747127 | F27: =IF(ISNUMBER(B25),Лист2!$B$2+Лист2!$Z$9,"") ->  | G27: =IF(ISNUMBER(B25),Лист2!$B$2-Лист2!$Z$9,"") ->  | AE27: =SUM(AE16:AE26) -> 11
C28: =IF(ISNUMBER(B28),AVERAGE($A$2:INDIRECT(CONCATENATE("a",COUNT(A:A)+1))),"") ->  | E28: 29.747127 | F28: =IF(ISNUMBER(B26),Лист2!$B$2+Лист2!$Z$9,"") ->  | G28: =IF(ISNUMBER(B26),Лист2!$B$2-Лист2!$Z$9,"") -> 
C29: =IF(ISNUMBER(B29),AVERAGE($A$2:INDIRECT(CONCATENATE("a",COUNT(A:A)+1))),"") ->  | E29: 29.747127 | F29: =IF(ISNUMBER(B27),Лист2!$B$2+Лист2!$Z$9,"") ->  | G29: =IF(ISNUMBER(B27),Лист2!$B$2-Лист2!$Z$9,"") -> 
C30: =IF(ISNUMBER(B30),AVERAGE($A$2:INDIRECT(CONCATENATE("a",COUNT(A:A)+1))),"") ->  | E30: 29.747127 | F30: =IF(ISNUMBER(B28),Лист2!$B$2+Лист2!$Z$9,"") ->  | G30: =IF(ISNUMBER(B28),Лист2!$B$2-Лист2!$Z$9,"") ->  | AA30: Период | AB30: Результат | AC30: 24
C31: =IF(ISNUMBER(B31),AVERAGE($A$2:INDIRECT(CONCATENATE("a",COUNT(A:A)+1))),"") ->  | E31: 29.747127 | F31: =IF(ISNUMBER(B29),Лист2!$B$2+Лист2!$Z$9,"") ->  | G31: =IF(ISNUMBER(B29),Лист2!$B$2-Лист2!$Z$9,"") ->  | AA31: 0 | AB31: 1000 | AC31: 1.5
C32: =IF(ISNUMBER(B32),AVERAGE($A$2:INDIRECT(CONCATENATE("a",COUNT(A:A)+1))),"") ->  | E32: 29.747127 | F32: =IF(ISNUMBER(B30),Лист2!$B$2+Лист2!$Z$9,"") ->  | G32: =IF(ISNUMBER(B30),Лист2!$B$2-Лист2!$Z$9,"") ->  | AA32: 0.4497716895 | AB32: 999.9958448
C33: =IF(ISNUMBER(B33),AVERAGE($A$2:INDIRECT(CONCATENATE("a",COUNT(A:A)+1))),"") ->  | E33: 29.747127 | F33: =IF(ISNUMBER(B31),Лист2!$B$2+Лист2!$Z$9,"") ->  | G33: =IF(ISNUMBER(B31),Лист2!$B$2-Лист2!$Z$9,"") ->  | AA33: 0.9123287671 | AB33: 1000.030311
C34: =IF(ISNUMBER(B34),AVERAGE($A$2:INDIRECT(CONCATENATE("a",COUNT(A:A)+1))),"") ->  | E34: 29.747127 | F34: =IF(ISNUMBER(B32),Лист2!$B$2+Лист2!$Z$9,"") ->  | G34: =IF(ISNUMBER(B32),Лист2!$B$2-Лист2!$Z$9,"") ->  | AA34: 2.391780822 | AB34: 1000.049134
C35: =IF(ISNUMBER(B35),AVERAGE($A$2:INDIRECT(CONCATENATE("a",COUNT(A:A)+1))),"") ->  | E35: 29.747127 | F35: =IF(ISNUMBER(B33),Лист2!$B$2+Лист2!$Z$9,"") ->  | G35: =IF(ISNUMBER(B33),Лист2!$B$2-Лист2!$Z$9,"") ->  | AA35: 2.884931507 | AB35: 1000.065828
C36: =IF(ISNUMBER(B36),AVERAGE($A$2:INDIRECT(CONCATENATE("a",COUNT(A:A)+1))),"") ->  | E36: 29.747127 | F36: =IF(ISNUMBER(B34),Лист2!$B$2+Лист2!$Z$9,"") ->  | G36: =IF(ISNUMBER(B34),Лист2!$B$2-Лист2!$Z$9,"") ->  | AA36: 5.252054795 | AB36: 1000.143465
C37: =IF(ISNUMBER(B37),AVERAGE($A$2:INDIRECT(CONCATENATE("a",COUNT(A:A)+1))),"") ->  | E37: 29.747127 | F37: =IF(ISNUMBER(B35),Лист2!$B$2+Лист2!$Z$9,"") ->  | G37: =IF(ISNUMBER(B35),Лист2!$B$2-Лист2!$Z$9,"") ->  | AA37: 8.835616438 | AB37: 1000.380314
C38: =IF(ISNUMBER(B38),AVERAGE($A$2:INDIRECT(CONCATENATE("a",COUNT(A:A)+1))),"") ->  | E38: 29.747127 | F38: =IF(ISNUMBER(B36),Лист2!$B$2+Лист2!$Z$9,"") ->  | G38: =IF(ISNUMBER(B36),Лист2!$B$2-Лист2!$Z$9,"") ->  | AA38: 9.345205479 | AB38: 1000.407432
C39: =IF(ISNUMBER(B39),AVERAGE($A$2:INDIRECT(CONCATENATE("a",COUNT(A:A)+1))),"") ->  | E39: 29.747127 | F39: =IF(ISNUMBER(B37),Лист2!$B$2+Лист2!$Z$9,"") ->  | G39: =IF(ISNUMBER(B37),Лист2!$B$2-Лист2!$Z$9,"") ->  | AA39: 11.50136986 | AB39: 1000.514594
C40: =IF(ISNUMBER(B40),AVERAGE($A$2:INDIRECT(CONCATENATE("a",COUNT(A:A)+1))),"") ->  | E40: 29.747127 | F40: =IF(ISNUMBER(B38),Лист2!$B$2+Лист2!$Z$9,"") ->  | G40: =IF(ISNUMBER(B38),Лист2!$B$2-Лист2!$Z$9,"") ->  | AA40: 18.89726027 | AB40: 1000.962922
C41: =IF(ISNUMBER(B41),AVERAGE($A$2:INDIRECT(CONCATENATE("a",COUNT(A:A)+1))),"") ->  | E41: 29.747127 | F41: =IF(ISNUMBER(B39),Лист2!$B$2+Лист2!$Z$9,"") ->  | G41: =IF(ISNUMBER(B39),Лист2!$B$2-Лист2!$Z$9,"") -> 
C42: =IF(ISNUMBER(B42),AVERAGE($A$2:INDIRECT(CONCATENATE("a",COUNT(A:A)+1))),"") ->  | E42: 29.747127 | F42: =IF(ISNUMBER(B40),Лист2!$B$2+Лист2!$Z$9,"") ->  | G42: =IF(ISNUMBER(B40),Лист2!$B$2-Лист2!$Z$9,"") -> 
C43: =IF(ISNUMBER(B43),AVERAGE($A$2:INDIRECT(CONCATENATE("a",COUNT(A:A)+1))),"") ->  | E43: 29.747127 | F43: =IF(ISNUMBER(B41),Лист2!$B$2+Лист2!$Z$9,"") ->  | G43: =IF(ISNUMBER(B41),Лист2!$B$2-Лист2!$Z$9,"") -> 
C44: =IF(ISNUMBER(B44),AVERAGE($A$2:INDIRECT(CONCATENATE("a",COUNT(A:A)+1))),"") ->  | E44: 29.747127 | F44: =IF(ISNUMBER(B42),Лист2!$B$2+Лист2!$Z$9,"") ->  | G44: =IF(ISNUMBER(B42),Лист2!$B$2-Лист2!$Z$9,"") -> 
C45: =IF(ISNUMBER(B45),AVERAGE($A$2:INDIRECT(CONCATENATE("a",COUNT(A:A)+1))),"") ->  | E45: 29.747127 | F45: =IF(ISNUMBER(B43),Лист2!$B$2+Лист2!$Z$9,"") ->  | G45: =IF(ISNUMBER(B43),Лист2!$B$2-Лист2!$Z$9,"") -> 
C46: =IF(ISNUMBER(B46),AVERAGE($A$2:INDIRECT(CONCATENATE("a",COUNT(A:A)+1))),"") ->  | E46: 29.747127 | F46: =IF(ISNUMBER(B44),Лист2!$B$2+Лист2!$Z$9,"") ->  | G46: =IF(ISNUMBER(B44),Лист2!$B$2-Лист2!$Z$9,"") -> 
C47: =IF(ISNUMBER(B47),AVERAGE($A$2:INDIRECT(CONCATENATE("a",COUNT(A:A)+1))),"") ->  | E47: 29.747127 | F47: =IF(ISNUMBER(B45),Лист2!$B$2+Лист2!$Z$9,"") ->  | G47: =IF(ISNUMBER(B45),Лист2!$B$2-Лист2!$Z$9,"") -> 
C48: =IF(ISNUMBER(B48),AVERAGE($A$2:INDIRECT(CONCATENATE("a",COUNT(A:A)+1))),"") ->  | E48: 29.747127 | F48: =IF(ISNUMBER(B46),Лист2!$B$2+Лист2!$Z$9,"") ->  | G48: =IF(ISNUMBER(B46),Лист2!$B$2-Лист2!$Z$9,"") -> 
C49: =IF(ISNUMBER(B49),AVERAGE($A$2:INDIRECT(CONCATENATE("a",COUNT(A:A)+1))),"") ->  | E49: 29.747127 | F49: =IF(ISNUMBER(B47),Лист2!$B$2+Лист2!$Z$9,"") ->  | G49: =IF(ISNUMBER(B47),Лист2!$B$2-Лист2!$Z$9,"") -> 
C50: =IF(ISNUMBER(B50),AVERAGE($A$2:INDIRECT(CONCATENATE("a",COUNT(A:A)+1))),"") ->  | E50: 29.747127 | F50: =IF(ISNUMBER(B48),Лист2!$B$2+Лист2!$Z$9,"") ->  | G50: =IF(ISNUMBER(B48),Лист2!$B$2-Лист2!$Z$9,"") -> 
C51: =IF(ISNUMBER(B51),AVERAGE($A$2:INDIRECT(CONCATENATE("a",COUNT(A:A)+1))),"") ->  | E51: 29.747127 | F51: =IF(ISNUMBER(B49),Лист2!$B$2+Лист2!$Z$9,"") ->  | G51: =IF(ISNUMBER(B49),Лист2!$B$2-Лист2!$Z$9,"") -> 
C52: =IF(ISNUMBER(B52),AVERAGE($A$2:INDIRECT(CONCATENATE("a",COUNT(A:A)+1))),"") ->  | E52: 29.747127 | F52: =IF(ISNUMBER(B50),Лист2!$B$2+Лист2!$Z$9,"") ->  | G52: =IF(ISNUMBER(B50),Лист2!$B$2-Лист2!$Z$9,"") -> 
C53: =IF(ISNUMBER(B53),AVERAGE($A$2:INDIRECT(CONCATENATE("a",COUNT(A:A)+1))),"") ->  | E53: 29.747127 | F53: =IF(ISNUMBER(B51),Лист2!$B$2+Лист2!$Z$9,"") ->  | G53: =IF(ISNUMBER(B51),Лист2!$B$2-Лист2!$Z$9,"") -> 
C54: =IF(ISNUMBER(B54),AVERAGE($A$2:INDIRECT(CONCATENATE("a",COUNT(A:A)+1))),"") ->  | E54: 29.747127 | F54: =IF(ISNUMBER(B52),Лист2!$B$2+Лист2!$Z$9,"") ->  | G54: =IF(ISNUMBER(B52),Лист2!$B$2-Лист2!$Z$9,"") -> 
C55: =IF(ISNUMBER(B55),AVERAGE($A$2:INDIRECT(CONCATENATE("a",COUNT(A:A)+1))),"") ->  | E55: 29.747127 | F55: =IF(ISNUMBER(B53),Лист2!$B$2+Лист2!$Z$9,"") ->  | G55: =IF(ISNUMBER(B53),Лист2!$B$2-Лист2!$Z$9,"") -> 
C56: =IF(ISNUMBER(B56),AVERAGE($A$2:INDIRECT(CONCATENATE("a",COUNT(A:A)+1))),"") ->  | E56: 29.747127 | F56: =IF(ISNUMBER(B54),Лист2!$B$2+Лист2!$Z$9,"") ->  | G56: =IF(ISNUMBER(B54),Лист2!$B$2-Лист2!$Z$9,"") -> 
C57: =IF(ISNUMBER(B57),AVERAGE($A$2:INDIRECT(CONCATENATE("a",COUNT(A:A)+1))),"") ->  | E57: 29.747127 | F57: =IF(ISNUMBER(B55),Лист2!$B$2+Лист2!$Z$9,"") ->  | G57: =IF(ISNUMBER(B55),Лист2!$B$2-Лист2!$Z$9,"") -> 
C58: =IF(ISNUMBER(B58),AVERAGE($A$2:INDIRECT(CONCATENATE("a",COUNT(A:A)+1))),"") ->  | E58: 29.747127 | F58: =IF(ISNUMBER(B56),Лист2!$B$2+Лист2!$Z$9,"") ->  | G58: =IF(ISNUMBER(B56),Лист2!$B$2-Лист2!$Z$9,"") -> 
C59: =IF(ISNUMBER(B59),AVERAGE($A$2:INDIRECT(CONCATENATE("a",COUNT(A:A)+1))),"") ->  | E59: 29.747127 | F59: =IF(ISNUMBER(B57),Лист2!$B$2+Лист2!$Z$9,"") ->  | G59: =IF(ISNUMBER(B57),Лист2!$B$2-Лист2!$Z$9,"") -> 
C60: =IF(ISNUMBER(B60),AVERAGE($A$2:INDIRECT(CONCATENATE("a",COUNT(A:A)+1))),"") ->  | E60: 29.747127 | F60: =IF(ISNUMBER(B58),Лист2!$B$2+Лист2!$Z$9,"") ->  | G60: =IF(ISNUMBER(B58),Лист2!$B$2-Лист2!$Z$9,"") -> 
C61: =IF(ISNUMBER(B61),AVERAGE($A$2:INDIRECT(CONCATENATE("a",COUNT(A:A)+1))),"") ->  | E61: 29.747127 | F61: =IF(ISNUMBER(B59),Лист2!$B$2+Лист2!$Z$9,"") ->  | G61: =IF(ISNUMBER(B59),Лист2!$B$2-Лист2!$Z$9,"") -> 
C62: =IF(ISNUMBER(B62),AVERAGE($A$2:INDIRECT(CONCATENATE("a",COUNT(A:A)+1))),"") ->  | E62: 29.747127 | F62: =IF(ISNUMBER(B60),Лист2!$B$2+Лист2!$Z$9,"") ->  | G62: =IF(ISNUMBER(B60),Лист2!$B$2-Лист2!$Z$9,"") -> 
C63: =IF(ISNUMBER(B63),AVERAGE($A$2:INDIRECT(CONCATENATE("a",COUNT(A:A)+1))),"") ->  | E63: 29.747127 | F63: =IF(ISNUMBER(B61),Лист2!$B$2+Лист2!$Z$9,"") ->  | G63: =IF(ISNUMBER(B61),Лист2!$B$2-Лист2!$Z$9,"") -> 
C64: =IF(ISNUMBER(B64),AVERAGE($A$2:INDIRECT(CONCATENATE("a",COUNT(A:A)+1))),"") ->  | E64: 29.747127 | F64: =IF(ISNUMBER(B62),Лист2!$B$2+Лист2!$Z$9,"") ->  | G64: =IF(ISNUMBER(B62),Лист2!$B$2-Лист2!$Z$9,"") -> 
C65: =IF(ISNUMBER(B65),AVERAGE($A$2:INDIRECT(CONCATENATE("a",COUNT(A:A)+1))),"") ->  | E65: 29.747127 | F65: =IF(ISNUMBER(B63),Лист2!$B$2+Лист2!$Z$9,"") ->  | G65: =IF(ISNUMBER(B63),Лист2!$B$2-Лист2!$Z$9,"") -> 
C66: =IF(ISNUMBER(B66),AVERAGE($A$2:INDIRECT(CONCATENATE("a",COUNT(A:A)+1))),"") ->  | E66: 29.747127 | F66: =IF(ISNUMBER(B64),Лист2!$B$2+Лист2!$Z$9,"") ->  | G66: =IF(ISNUMBER(B64),Лист2!$B$2-Лист2!$Z$9,"") -> 
C67: =IF(ISNUMBER(B67),AVERAGE($A$2:INDIRECT(CONCATENATE("a",COUNT(A:A)+1))),"") ->  | E67: 29.747127 | F67: =IF(ISNUMBER(B65),Лист2!$B$2+Лист2!$Z$9,"") ->  | G67: =IF(ISNUMBER(B65),Лист2!$B$2-Лист2!$Z$9,"") -> 
C68: =IF(ISNUMBER(B68),AVERAGE($A$2:INDIRECT(CONCATENATE("a",COUNT(A:A)+1))),"") ->  | E68: 29.747127 | F68: =IF(ISNUMBER(B66),Лист2!$B$2+Лист2!$Z$9,"") ->  | G68: =IF(ISNUMBER(B66),Лист2!$B$2-Лист2!$Z$9,"") -> 
C69: =IF(ISNUMBER(B69),AVERAGE($A$2:INDIRECT(CONCATENATE("a",COUNT(A:A)+1))),"") ->  | E69: 29.747127 | F69: =IF(ISNUMBER(B67),Лист2!$B$2+Лист2!$Z$9,"") ->  | G69: =IF(ISNUMBER(B67),Лист2!$B$2-Лист2!$Z$9,"") -> 
C70: =IF(ISNUMBER(B70),AVERAGE($A$2:INDIRECT(CONCATENATE("a",COUNT(A:A)+1))),"") ->  | E70: =IF(AND(A70="",A69=""),MAX(IF($Z$5>$Z$8,$Z$5+$Z$5*0.1,$Z$8+$Z$8*0.1),$Z$5+$Z$5*0.1),IF(A70="",MAX($Z$5,$Z$8),A70)) -> 29.747127 | F70: =IF(ISNUMBER(B68),Лист2!$B$2+Лист2!$Z$9,"") ->  | G70: =IF(ISNUMBER(B68),Лист2!$B$2-Лист2!$Z$9,"") -> 
C71: =IF(ISNUMBER(B71),AVERAGE($A$2:INDIRECT(CONCATENATE("a",COUNT(A:A)+1))),"") ->  | E71: 29.747127 | F71: =IF(ISNUMBER(B69),Лист2!$B$2+Лист2!$Z$9,"") ->  | G71: =IF(ISNUMBER(B69),Лист2!$B$2-Лист2!$Z$9,"") -> 
C72: =IF(ISNUMBER(B72),AVERAGE($A$2:INDIRECT(CONCATENATE("a",COUNT(A:A)+1))),"") ->  | E72: 29.747127 | F72: =IF(ISNUMBER(B70),Лист2!$B$2+Лист2!$Z$9,"") ->  | G72: =IF(ISNUMBER(B70),Лист2!$B$2-Лист2!$Z$9,"") -> 
C73: =IF(ISNUMBER(B73),AVERAGE($A$2:INDIRECT(CONCATENATE("a",COUNT(A:A)+1))),"") ->  | E73: 29.747127 | F73: =IF(ISNUMBER(B71),Лист2!$B$2+Лист2!$Z$9,"") ->  | G73: =IF(ISNUMBER(B71),Лист2!$B$2-Лист2!$Z$9,"") -> 
C74: =IF(ISNUMBER(B74),AVERAGE($A$2:INDIRECT(CONCATENATE("a",COUNT(A:A)+1))),"") ->  | E74: 29.747127 | F74: =IF(ISNUMBER(B72),Лист2!$B$2+Лист2!$Z$9,"") ->  | G74: =IF(ISNUMBER(B72),Лист2!$B$2-Лист2!$Z$9,"") -> 
C75: =IF(ISNUMBER(B75),AVERAGE($A$2:INDIRECT(CONCATENATE("a",COUNT(A:A)+1))),"") ->  | E75: 29.747127 | F75: =IF(ISNUMBER(B73),Лист2!$B$2+Лист2!$Z$9,"") ->  | G75: =IF(ISNUMBER(B73),Лист2!$B$2-Лист2!$Z$9,"") -> 
C76: =IF(ISNUMBER(B76),AVERAGE($A$2:INDIRECT(CONCATENATE("a",COUNT(A:A)+1))),"") ->  | E76: 29.747127 | F76: =IF(ISNUMBER(B74),Лист2!$B$2+Лист2!$Z$9,"") ->  | G76: =IF(ISNUMBER(B74),Лист2!$B$2-Лист2!$Z$9,"") -> 
C77: =IF(ISNUMBER(B77),AVERAGE($A$2:INDIRECT(CONCATENATE("a",COUNT(A:A)+1))),"") ->  | E77: 29.747127 | F77: =IF(ISNUMBER(B75),Лист2!$B$2+Лист2!$Z$9,"") ->  | G77: =IF(ISNUMBER(B75),Лист2!$B$2-Лист2!$Z$9,"") -> 
C78: =IF(ISNUMBER(B78),AVERAGE($A$2:INDIRECT(CONCATENATE("a",COUNT(A:A)+1))),"") ->  | E78: 29.747127 | F78: =IF(ISNUMBER(B76),Лист2!$B$2+Лист2!$Z$9,"") ->  | G78: =IF(ISNUMBER(B76),Лист2!$B$2-Лист2!$Z$9,"") -> 
C79: =IF(ISNUMBER(B79),AVERAGE($A$2:INDIRECT(CONCATENATE("a",COUNT(A:A)+1))),"") ->  | E79: 29.747127 | F79: =IF(ISNUMBER(B77),Лист2!$B$2+Лист2!$Z$9,"") ->  | G79: =IF(ISNUMBER(B77),Лист2!$B$2-Лист2!$Z$9,"") -> 
C80: =IF(ISNUMBER(B80),AVERAGE($A$2:INDIRECT(CONCATENATE("a",COUNT(A:A)+1))),"") ->  | E80: 29.747127 | F80: =IF(ISNUMBER(B78),Лист2!$B$2+Лист2!$Z$9,"") ->  | G80: =IF(ISNUMBER(B78),Лист2!$B$2-Лист2!$Z$9,"") -> 
C81: =IF(ISNUMBER(B81),AVERAGE($A$2:INDIRECT(CONCATENATE("a",COUNT(A:A)+1))),"") ->  | E81: 29.747127 | F81: =IF(ISNUMBER(B79),Лист2!$B$2+Лист2!$Z$9,"") ->  | G81: =IF(ISNUMBER(B79),Лист2!$B$2-Лист2!$Z$9,"") -> 
C82: =IF(ISNUMBER(B82),AVERAGE($A$2:INDIRECT(CONCATENATE("a",COUNT(A:A)+1))),"") ->  | E82: 29.747127 | F82: =IF(ISNUMBER(B80),Лист2!$B$2+Лист2!$Z$9,"") ->  | G82: =IF(ISNUMBER(B80),Лист2!$B$2-Лист2!$Z$9,"") -> 
C83: =IF(ISNUMBER(B83),AVERAGE($A$2:INDIRECT(CONCATENATE("a",COUNT(A:A)+1))),"") ->  | E83: 29.747127 | F83: =IF(ISNUMBER(B81),Лист2!$B$2+Лист2!$Z$9,"") ->  | G83: =IF(ISNUMBER(B81),Лист2!$B$2-Лист2!$Z$9,"") -> 
C84: =IF(ISNUMBER(B84),AVERAGE($A$2:INDIRECT(CONCATENATE("a",COUNT(A:A)+1))),"") ->  | E84: 29.747127 | F84: =IF(ISNUMBER(B82),Лист2!$B$2+Лист2!$Z$9,"") ->  | G84: =IF(ISNUMBER(B82),Лист2!$B$2-Лист2!$Z$9,"") -> 
C85: =IF(ISNUMBER(B85),AVERAGE($A$2:INDIRECT(CONCATENATE("a",COUNT(A:A)+1))),"") ->  | E85: 29.747127 | F85: =IF(ISNUMBER(B83),Лист2!$B$2+Лист2!$Z$9,"") ->  | G85: =IF(ISNUMBER(B83),Лист2!$B$2-Лист2!$Z$9,"") -> 
C86: =IF(ISNUMBER(B86),AVERAGE($A$2:INDIRECT(CONCATENATE("a",COUNT(A:A)+1))),"") ->  | E86: 29.747127 | F86: =IF(ISNUMBER(B84),Лист2!$B$2+Лист2!$Z$9,"") ->  | G86: =IF(ISNUMBER(B84),Лист2!$B$2-Лист2!$Z$9,"") -> 
C87: =IF(ISNUMBER(B87),AVERAGE($A$2:INDIRECT(CONCATENATE("a",COUNT(A:A)+1))),"") ->  | E87: 29.747127 | F87: =IF(ISNUMBER(B85),Лист2!$B$2+Лист2!$Z$9,"") ->  | G87: =IF(ISNUMBER(B85),Лист2!$B$2-Лист2!$Z$9,"") -> 
C88: =IF(ISNUMBER(B88),AVERAGE($A$2:INDIRECT(CONCATENATE("a",COUNT(A:A)+1))),"") ->  | E88: 29.747127 | F88: =IF(ISNUMBER(B86),Лист2!$B$2+Лист2!$Z$9,"") ->  | G88: =IF(ISNUMBER(B86),Лист2!$B$2-Лист2!$Z$9,"") -> 
C89: =IF(ISNUMBER(B89),AVERAGE($A$2:INDIRECT(CONCATENATE("a",COUNT(A:A)+1))),"") ->  | E89: 29.747127 | F89: =IF(ISNUMBER(B87),Лист2!$B$2+Лист2!$Z$9,"") ->  | G89: =IF(ISNUMBER(B87),Лист2!$B$2-Лист2!$Z$9,"") -> 
C90: =IF(ISNUMBER(B90),AVERAGE($A$2:INDIRECT(CONCATENATE("a",COUNT(A:A)+1))),"") ->  | E90: 29.747127 | F90: =IF(ISNUMBER(B88),Лист2!$B$2+Лист2!$Z$9,"") ->  | G90: =IF(ISNUMBER(B88),Лист2!$B$2-Лист2!$Z$9,"") -> 
C91: =IF(ISNUMBER(B91),AVERAGE($A$2:INDIRECT(CONCATENATE("a",COUNT(A:A)+1))),"") ->  | E91: 29.747127 | F91: =IF(ISNUMBER(B89),Лист2!$B$2+Лист2!$Z$9,"") ->  | G91: =IF(ISNUMBER(B89),Лист2!$B$2-Лист2!$Z$9,"") -> 
C92: =IF(ISNUMBER(B92),AVERAGE($A$2:INDIRECT(CONCATENATE("a",COUNT(A:A)+1))),"") ->  | E92: 29.747127 | F92: =IF(ISNUMBER(B90),Лист2!$B$2+Лист2!$Z$9,"") ->  | G92: =IF(ISNUMBER(B90),Лист2!$B$2-Лист2!$Z$9,"") -> 
C93: =IF(ISNUMBER(B93),AVERAGE($A$2:INDIRECT(CONCATENATE("a",COUNT(A:A)+1))),"") ->  | E93: 29.747127 | F93: =IF(ISNUMBER(B91),Лист2!$B$2+Лист2!$Z$9,"") ->  | G93: =IF(ISNUMBER(B91),Лист2!$B$2-Лист2!$Z$9,"") -> 
C94: =IF(ISNUMBER(B94),AVERAGE($A$2:INDIRECT(CONCATENATE("a",COUNT(A:A)+1))),"") ->  | E94: 29.747127 | F94: =IF(ISNUMBER(B92),Лист2!$B$2+Лист2!$Z$9,"") ->  | G94: =IF(ISNUMBER(B92),Лист2!$B$2-Лист2!$Z$9,"") -> 
C95: =IF(ISNUMBER(B95),AVERAGE($A$2:INDIRECT(CONCATENATE("a",COUNT(A:A)+1))),"") ->  | E95: 29.747127 | F95: =IF(ISNUMBER(B93),Лист2!$B$2+Лист2!$Z$9,"") ->  | G95: =IF(ISNUMBER(B93),Лист2!$B$2-Лист2!$Z$9,"") -> 
C96: =IF(ISNUMBER(B96),AVERAGE($A$2:INDIRECT(CONCATENATE("a",COUNT(A:A)+1))),"") ->  | E96: 29.747127 | F96: =IF(ISNUMBER(B94),Лист2!$B$2+Лист2!$Z$9,"") ->  | G96: =IF(ISNUMBER(B94),Лист2!$B$2-Лист2!$Z$9,"") -> 
C97: =IF(ISNUMBER(B97),AVERAGE($A$2:INDIRECT(CONCATENATE("a",COUNT(A:A)+1))),"") ->  | E97: 29.747127 | F97: =IF(ISNUMBER(B95),Лист2!$B$2+Лист2!$Z$9,"") ->  | G97: =IF(ISNUMBER(B95),Лист2!$B$2-Лист2!$Z$9,"") -> 
C98: =IF(ISNUMBER(B98),AVERAGE($A$2:INDIRECT(CONCATENATE("a",COUNT(A:A)+1))),"") ->  | E98: 29.747127 | F98: =IF(ISNUMBER(B96),Лист2!$B$2+Лист2!$Z$9,"") ->  | G98: =IF(ISNUMBER(B96),Лист2!$B$2-Лист2!$Z$9,"") -> 
C99: =IF(ISNUMBER(B99),AVERAGE($A$2:INDIRECT(CONCATENATE("a",COUNT(A:A)+1))),"") ->  | E99: 29.747127 | F99: =IF(ISNUMBER(B97),Лист2!$B$2+Лист2!$Z$9,"") ->  | G99: =IF(ISNUMBER(B97),Лист2!$B$2-Лист2!$Z$9,"") -> 
C100: =IF(ISNUMBER(B100),AVERAGE($A$2:INDIRECT(CONCATENATE("a",COUNT(A:A)+1))),"") ->  | E100: 29.747127 | F100: =IF(ISNUMBER(B98),Лист2!$B$2+Лист2!$Z$9,"") ->  | G100: =IF(ISNUMBER(B98),Лист2!$B$2-Лист2!$Z$9,"") -> 
